fUST/lending_fUST_20240603
["ID","MTS","AMOUNT","RATE_DAILY","PERIOD"]
[328450353,1717403441605,-5000.0,0.0002048,2]
[328450354,1717403441614,-257.0573029,0.00021301,2]
[328450355,1717403441624,-1632.58637617,0.00021677,7]
[328450356,1717403441634,-409.928109,0.00021678,2]
[328450357,1717403441644,-155.39009532,0.00021816,2]
[328450358,1717403441653,-267.64867022,0.00021848,2]
[328450359,1717403441662,-500.0,0.00021914,2]
[328450360,1717403441672,-500.0,0.00021914,2]
[328450361,1717403441681,-500.0,0.00021914,2]
[328450362,1717403441690,-500.0,0.00021914,2]
[328450363,1717403441699,-500.0,0.00021914,2]
[328450364,1717403441709,-500.0,0.00021914,2]
[328450365,1717403441718,-500.0,0.00021914,2]
[328450366,1717403441728,-500.0,0.00021914,2]
[328450367,1717403441738,-500.0,0.00021914,2]
[328450368,1717403441747,-500.0,0.00021914,2]
[328450369,1717403441758,-500.0,0.00021914,2]
[328450370,1717403441768,-500.0,0.00021914,2]
[328450371,1717403441778,-500.0,0.00021914,2]
[328450372,1717403441787,-500.0,0.00021914,2]
[328450373,1717403441797,-500.0,0.00021914,2]
[328450374,1717403441807,-500.0,0.00021914,2]
[328450375,1717403441816,-430.92177312,0.00021914,2]
[328450376,1717403441828,-69.07822688,0.00021914,2]
[328450377,1717403441838,-500.0,0.00021914,2]
[328450378,1717403441848,-500.0,0.00021914,2]
[328450379,1717403441857,-500.0,0.00021914,2]
[328450380,1717403441866,-500.0,0.00021914,2]
[328450381,1717403441876,-500.0,0.00021914,2]
[328450382,1717403441886,-500.0,0.00021914,2]
[328450383,1717403441895,-500.0,0.00021914,2]
[328450384,1717403441905,-500.0,0.00021914,2]
[328450385,1717403441914,-500.0,0.00021914,2]
[328450386,1717403441924,-500.0,0.00021914,2]
[328450387,1717403441933,-500.0,0.00021914,2]
[328450388,1717403441943,-500.0,0.00021914,2]
[328450389,1717403441953,-500.0,0.00021914,2]
[328450390,1717403441962,-500.0,0.00021914,2]
[328450391,1717403441971,-500.0,0.00021914,2]
[328450392,1717403441981,-500.0,0.00021914,2]
[328450393,1717403441991,-463.94708611,0.00021914,2]
[328450413,1717403443600,-36.05291389,0.00021914,2]
[328450414,1717403443611,-500.0,0.00021914,2]
[328450415,1717403443620,-118.35650158,0.00021914,2]
[328450477,1717403448263,-205.0258957,0.00021425,2]
[328450478,1717403448273,-381.64349842,0.00021914,2]
[328450479,1717403448282,-13.14921925,0.00021914,2]
[328450483,1717403512904,1499.82828708,9.999e-05,2]
[328450484,1717403536036,1341.75482634,9.999e-05,2]
[328450486,1717403626841,305.3780539,9.999e-05,2]
[328450488,1717403724407,538.74491892,0.0002003,3]
[328450489,1717403743346,1632.58637617,0.00019811,7]
[328450491,1717404097320,204.70730861,0.00020029,3]
[328450492,1717404285429,272.29500778,9.999e-05,2]
[328450497,1717404520733,305.3780539,9.999e-05,2]
[328450498,1717404535274,273.37336231,9.9e-05,2]
[328450533,1717404633865,-3762.93030736,0.00017462,2]
[328450535,1717404633874,-2818.34688085,0.00017463,2]
[328450537,1717404633885,-292.0207383,0.00017464,2]
[328450539,1717404633895,-897.68664681,0.00018,2]
[328450541,1717404633905,-429.88105095,0.000189,2]
[328450543,1717404633914,-184.96972521,0.000191,2]
[328450545,1717404633923,-272.20567229,0.00020022,2]
[328450547,1717404633933,-500.0,0.00020119,2]
[328450549,1717404633942,-24143.69599244,0.0002012,2]
[328450551,1717404633953,-425.21763708,0.0002012,2]
[328450563,1717404633964,-2438.7394258,0.0002012,2]
[328450574,1717404639544,-500.0,0.00020119,2]
[328450575,1717404639554,-500.0,0.00020119,2]
[328450576,1717404639563,-500.0,0.00020119,2]
[328450577,1717404639572,-500.0,0.00020119,2]
[328450578,1717404639581,-500.0,0.00020119,2]
[328450579,1717404639591,-500.0,0.00020119,2]
[328450580,1717404639600,-500.0,0.00020119,2]
[328450581,1717404639609,-500.0,0.00020119,2]
[328450582,1717404639618,-250.841585,0.00020119,2]
[328450583,1717404639630,-249.158415,0.00020119,2]
[328450584,1717404639639,-500.0,0.00020119,2]
[328450585,1717404639648,-321.28955615,0.00020119,2]
[328450586,1717404639660,-178.71044385,0.00020119,2]
[328450587,1717404639669,-500.0,0.00020119,2]
[328450588,1717404639679,-281.35219534,0.00020119,2]
[328450589,1717404639698,-36.96796311,0.00020119,2]
[328450689,1717404644061,-463.03203689,0.00020119,2]
[328450691,1717404644070,-500.0,0.00020119,2]
[328450692,1717404644079,-500.0,0.00020119,2]
[328450694,1717404644089,-500.0,0.00020119,2]
[328450696,1717404644098,-500.0,0.00020119,2]
[328450698,1717404644107,-500.0,0.00020119,2]
[328450699,1717404644116,-500.0,0.00020119,2]
[328450701,1717404644125,-500.0,0.00020119,2]
[328450702,1717404644134,-30023.30929595,0.0002012,2]
[328450714,1717404644530,-645.86173075,0.0002012,2]
[328450715,1717404644542,-693.91828464,0.0002012,2]
[328450716,1717404644553,-3392.92988484,0.0002012,2]
[328450717,1717404644590,-18236.3277485,0.0002012,2]
[328450718,1717404644599,-9394.8758168,0.00020121,7]
[328450719,1717404644608,-500.0,0.00020123,2]
[328450720,1717404644617,-225.35616813,0.00020123,2]
[328450721,1717404644628,-494.62292697,0.00020123,2]
[328450722,1717404644637,-160.31448259,0.00020123,2]
[328450723,1717404644649,-500.0,0.00020123,2]
[328450724,1717404644658,-500.0,0.00020123,2]
[328450725,1717404644667,-500.0,0.00020123,2]
[328450726,1717404644676,-366.3188457,0.00020123,2]
[328450727,1717404644686,-500.0,0.00020123,2]
[328450728,1717404644695,-500.0,0.00020123,2]
[328450729,1717404644704,-500.0,0.00020123,2]
[328450730,1717404644713,-624.35996867,0.00020123,2]
[328450731,1717404644722,-500.0,0.00020123,2]
[328450732,1717404644731,-500.0,0.00020123,2]
[328450733,1717404644740,-500.0,0.00020123,2]
[328450734,1717404644749,-500.0,0.00020123,2]
[328450735,1717404644759,-598.43120148,0.00020123,2]
[328450736,1717404644770,-500.0,0.00020123,2]
[328450737,1717404644783,-500.0,0.00020123,2]
[328450738,1717404644792,-500.0,0.00020123,2]
[328450739,1717404644801,-500.0,0.00020123,2]
[328450740,1717404644811,-500.0,0.00020123,2]
[328450741,1717404644824,-24900.0,0.00020135,2]
[328450742,1717404644834,-10062.97556561,0.00021,2]
[328450743,1717404644843,-198.28961148,0.00021,2]
[328450744,1717404644853,-292.111389,0.00021178,2]
[328450745,1717404644863,-205.0258957,0.0002137,2]
[328450746,1717404644874,-409.4672305,0.00021616,2]
[328450747,1717404644883,-292.111389,0.00021678,2]
[328450748,1717404644896,-1632.58637617,0.00021906,7]
[328450749,1717404644907,-13641.78906134,0.00021911,2]
[328450750,1717404644916,-173.26805194,0.00021915,2]
[328450751,1717404644925,-169.85454151,0.00021915,2]
[328450752,1717404644935,-212.35770846,0.00021916,7]
[328450753,1717404644945,-17339.03176756,0.00021917,7]
[328450754,1717404644954,-500.0,0.00021917,2]
[328450755,1717404644963,-500.0,0.00021917,2]
[328450756,1717404644972,-500.0,0.00021917,2]
[328450757,1717404644982,-501.03753254,0.00021917,2]
[328450758,1717404644991,-500.0,0.00021917,2]
[328450759,1717404645000,-500.0,0.00021917,2]
[328450760,1717404645010,-500.0,0.00021917,2]
[328450761,1717404645019,-501.29804807,0.00021917,2]
[328450762,1717404645029,-500.35360815,0.00021917,2]
[328450763,1717404645038,-500.0,0.00021917,2]
[328450764,1717404645048,-500.63786971,0.00021917,2]
[328450765,1717404645057,-500.39238469,0.00021917,2]
[328450766,1717404645067,-500.0,0.00021917,2]
[328450767,1717404645076,-601.95,0.00021917,2]
[328450768,1717404645086,-532.88818897,0.00021917,2]
[328450769,1717404645096,-502.50784901,0.00021917,2]
[328450770,1717404645105,-582.61196471,0.00021917,2]
[328450771,1717404645114,-503.52934006,0.00021917,2]
[328450772,1717404645124,-500.0,0.00021917,2]
[328450773,1717404645132,-502.72501245,0.00021917,2]
[328450774,1717404645143,-382.03486772,0.00021917,2]
[328450775,1717404645153,-527.71655032,0.00021917,2]
[328450776,1717404645162,-500.0,0.00021917,2]
[328450777,1717404645172,-500.0,0.00021917,2]
[328450778,1717404645181,-500.0,0.00021917,2]
[328450779,1717404645190,-500.0,0.00021917,2]
[328450780,1717404645200,-501.55659041,0.00021917,2]
[328450781,1717404645209,-500.0,0.00021917,2]
[328450782,1717404645219,-546.73,0.00021917,2]
[328450783,1717404645228,-500.0,0.00021917,2]
[328450784,1717404645238,-500.0,0.00021917,2]
[328450785,1717404645247,-500.0,0.00021917,2]
[328450786,1717404645256,-500.0,0.00021917,2]
[328450787,1717404645266,-500.0,0.00021917,2]
[328450788,1717404645275,-540.18070168,0.00021917,2]
[328450789,1717404645284,-629.85129178,0.00021917,2]
[328450790,1717404645294,-503.58050748,0.00021917,2]
[328450791,1717404645303,-500.0,0.00021917,2]
[328450792,1717404645313,-502.85760291,0.00021917,2]
[328450793,1717404645323,-162.87164228,0.00021917,2]
[328450794,1717404645332,-500.0,0.00021917,2]
[328450795,1717404645341,-500.71794462,0.00021917,2]
[328450796,1717404645351,-500.0,0.00021917,2]
[328450797,1717404645360,-456.49287133,0.00021917,2]
[328450798,1717404645369,-501.98418176,0.00021917,2]
[328450799,1717404645378,-500.0,0.00021917,2]
[328450800,1717404645387,-502.01491196,0.00021917,2]
[328450801,1717404645398,-500.0,0.00021917,2]
[328450802,1717404645407,-647.12241206,0.00021917,2]
[328450803,1717404645416,-500.0,0.00021917,2]
[328450804,1717404645425,-500.0,0.00021917,2]
[328450805,1717404645434,-166.56808756,0.00021917,2]
[328450806,1717404645443,-152.306234,0.00021917,2]
[328450807,1717404645452,-500.0,0.00021917,2]
[328450808,1717404645461,-500.0,0.00021917,2]
[328450809,1717404645470,-260.363161,0.00021917,2]
[328450810,1717404645479,-1209.78,0.00021917,2]
[328450811,1717404645488,-500.0,0.00021917,2]
[328450812,1717404645497,-500.0,0.00021917,2]
[328450813,1717404645506,-200.00722861,0.00021917,2]
[328450814,1717404645515,-500.0,0.00021917,2]
[328450815,1717404645525,-500.0,0.00021917,2]
[328450816,1717404645534,-500.0,0.00021917,2]
[328450817,1717404645543,-572.27,0.00021917,2]
[328450818,1717404645552,-793.22,0.00021917,2]
[328450819,1717404645562,-731.57,0.00021917,2]
[328450820,1717404645571,-500.0,0.00021917,2]
[328450821,1717404645580,-500.0,0.00021917,2]
[328450822,1717404645590,-500.0,0.00021917,2]
[328450823,1717404645599,-500.0,0.00021917,2]
[328450824,1717404645608,-500.0,0.00021917,2]
[328450825,1717404645617,-500.0,0.00021917,2]
[328450826,1717404645627,-500.0,0.00021917,2]
[328450827,1717404645637,-634.34,0.00021917,2]
[328450828,1717404645648,-500.0,0.00021917,2]
[328450829,1717404645657,-504.02444445,0.00021917,2]
[328450830,1717404645666,-500.0,0.00021917,2]
[328450831,1717404645676,-718.35,0.00021917,2]
[328450832,1717404645686,-940.27,0.00021917,2]
[328450833,1717404645696,-500.0,0.00021917,2]
[328450834,1717404645705,-521.36,0.00021917,2]
[328450835,1717404645715,-500.00683959,0.00021917,2]
[328450836,1717404645725,-501.07665085,0.00021917,2]
[328450837,1717404645735,-504.41927206,0.00021917,2]
[328450838,1717404645744,-500.0,0.00021917,2]
[328450839,1717404645755,-500.37151438,0.00021917,2]
[328450840,1717404645765,-500.0,0.00021917,2]
[328450841,1717404645774,-500.0,0.00021917,2]
[328450842,1717404645784,-518.57,0.00021917,2]
[328450843,1717404645793,-500.0,0.00021917,2]
[328450844,1717404645803,-500.0,0.00021917,2]
[328450845,1717404645814,-500.0,0.00021917,2]
[328450846,1717404645825,-500.4734162,0.00021917,2]
[328450847,1717404645834,-500.0,0.00021917,2]
[328450848,1717404645844,-500.0,0.00021917,2]
[328450849,1717404645855,-500.0,0.00021917,2]
[328450850,1717404645864,-518.82245021,0.00021917,2]
[328450851,1717404645874,-500.0,0.00021917,2]
[328450852,1717404645884,-500.0,0.00021917,2]
[328450853,1717404645894,-500.0,0.00021917,2]
[328450854,1717404645903,-501.59375771,0.00021917,2]
[328450855,1717404645913,-156.646034,0.00021917,2]
[328450856,1717404645922,-500.0,0.00021917,2]
[328450857,1717404645932,-501.57668032,0.00021917,2]
[328450858,1717404645941,-500.0,0.00021917,2]
[328450859,1717404645951,-500.0,0.00021917,2]
[328450860,1717404645960,-500.0,0.00021917,2]
[328450861,1717404645969,-1000.0,0.00021917,2]
[328450862,1717404645978,-151.0,0.00021917,2]
[328450863,1717404645987,-151.0,0.00021917,2]
[328450864,1717404645996,-500.54611636,0.00021917,2]
[328450865,1717404646006,-500.0,0.00021917,2]
[328450866,1717404646015,-500.0,0.00021917,2]
[328450867,1717404646024,-500.0,0.00021917,2]
[328450868,1717404646034,-500.0,0.00021917,2]
[328450869,1717404646043,-502.76961895,0.00021917,2]
[328450870,1717404646053,-500.0,0.00021917,2]
[328450871,1717404646062,-500.0,0.00021917,2]
[328450872,1717404646070,-151.0,0.00021917,2]
[328450873,1717404646080,-500.0,0.00021917,2]
[328450874,1717404646089,-500.0,0.00021917,2]
[328450875,1717404646098,-506.18847549,0.00021917,2]
[328450876,1717404646108,-502.89719724,0.00021917,2]
[328450877,1717404646116,-360.09161874,0.00021917,2]
[328450878,1717404646126,-500.0,0.00021917,2]
[328450879,1717404646135,-828.13,0.00021917,2]
[328450880,1717404646146,-501.52669242,0.00021917,2]
[328450881,1717404646155,-500.62149315,0.00021917,2]
[328450882,1717404646164,-713.11,0.00021917,2]
[328450884,1717404646174,-500.1190033,0.00021917,2]
[328450885,1717404646183,-500.0,0.00021917,2]
[328450886,1717404646192,-500.0,0.00021917,2]
[328450887,1717404646201,-500.0,0.00021917,2]
[328450888,1717404646210,-500.36045203,0.00021917,2]
[328450889,1717404646220,-371.61497995,0.00021917,2]
[328450890,1717404646229,-500.0,0.00021917,2]
[328450891,1717404646238,-500.0,0.00021917,2]
[328450892,1717404646247,-500.36131839,0.00021917,2]
[328450893,1717404646256,-566.93,0.00021917,2]
[328450894,1717404646266,-500.0,0.00021917,2]
[328450895,1717404646275,-500.0,0.00021917,2]
[328450896,1717404646284,-500.38140576,0.00021917,2]
[328450897,1717404646293,-500.0,0.00021917,2]
[328450898,1717404646302,-500.0,0.00021917,2]
[328450899,1717404646312,-500.0,0.00021917,2]
[328450900,1717404646321,-502.68226518,0.00021917,2]
[328450901,1717404646330,-500.0,0.00021917,2]
[328450902,1717404646339,-502.49170773,0.00021917,2]
[328450903,1717404646348,-514.77674816,0.00021917,2]
[328450904,1717404646357,-500.0,0.00021917,2]
[328450905,1717404646366,-501.43894804,0.00021917,2]
[328450906,1717404646376,-616.19723415,0.00021917,2]
[328450907,1717404646385,-519.03178239,0.00021917,2]
[328450908,1717404646395,-500.0,0.00021917,2]
[328450909,1717404646404,-523.2,0.00021917,2]
[328450910,1717404646413,-500.0,0.00021917,2]
[328450911,1717404646424,-519.07764824,0.00021917,2]
[328450912,1717404646433,-500.0,0.00021917,2]
[328450913,1717404646443,-500.0,0.00021917,2]
[328450914,1717404646451,-500.0,0.00021917,2]
[328450915,1717404646461,-500.0,0.00021917,2]
[328450916,1717404646470,-501.98384789,0.00021917,2]
[328450917,1717404646479,-1030.21,0.00021917,2]
[328450918,1717404646487,-500.956825,0.00021917,2]
[328450919,1717404646496,-500.0,0.00021917,2]
[328450920,1717404646670,-500.0,0.00021917,2]
[328450921,1717404646680,-501.52806731,0.00021917,2]
[328450922,1717404646689,-500.0,0.00021917,2]
[328450923,1717404646699,-500.0,0.00021917,2]
[328450924,1717404646707,-500.0,0.00021917,2]
[328450925,1717404646717,-500.0,0.00021917,2]
[328450926,1717404646727,-501.9405511,0.00021917,2]
[328450927,1717404646737,-502.36609563,0.00021917,2]
[328450928,1717404646747,-501.74958106,0.00021917,2]
[328450929,1717404646756,-500.0,0.00021917,2]
[328450930,1717404646766,-500.0,0.00021917,2]
[328450932,1717404646776,-517.15665583,0.00021917,2]
[328450933,1717404646785,-423.57039001,0.00021917,2]
[328450934,1717404646795,-500.0,0.00021917,2]
[328450935,1717404646804,-500.0,0.00021917,2]
[328450936,1717404646817,-200.0,0.00021917,2]
[328450937,1717404646827,-500.0,0.00021917,2]
[328450938,1717404646836,-500.0,0.00021917,2]
[328450939,1717404646847,-500.0,0.00021917,2]
[328450940,1717404646857,-570.77,0.00021917,2]
[328450941,1717404646866,-653.37,0.00021917,2]
[328450942,1717404646875,-502.1751297,0.00021917,2]
[328450943,1717404646886,-502.31238021,0.00021917,2]
[328450944,1717404646898,-500.0,0.00021917,2]
[328450945,1717404646907,-160.644515,0.00021917,2]
[328450946,1717404646916,-501.70829893,0.00021917,2]
[328450947,1717404646924,-500.0,0.00021917,2]
[328450948,1717404646933,-525.83756475,0.00021917,2]
[328450949,1717404646943,-1030.86,0.00021917,2]
[328450950,1717404646952,-718.38,0.00021917,2]
[328450951,1717404646961,-500.0,0.00021917,2]
[328450952,1717404646970,-500.25605501,0.00021917,2]
[328450953,1717404646979,-500.0,0.00021917,2]
[328450954,1717404646988,-500.0,0.00021917,2]
[328450955,1717404646998,-501.40193266,0.00021917,2]
[328450956,1717404647007,-502.13437215,0.00021917,2]
[328450957,1717404647016,-501.97791594,0.00021917,2]
[328450958,1717404647026,-500.0,0.00021917,2]
[328450959,1717404647035,-660.13,0.00021917,2]
[328450960,1717404647044,-1514.2,0.00021917,2]
[328450961,1717404647053,-151.0,0.00021917,2]
[328450962,1717404647062,-151.0,0.00021917,2]
[328450963,1717404647071,-317.07,0.00021917,2]
[328450964,1717404647080,-500.0,0.00021917,2]
[328450965,1717404647090,-500.0,0.00021917,2]
[328450966,1717404647099,-500.0,0.00021917,2]
[328450967,1717404647108,-622.90944017,0.00021917,2]
[328450968,1717404647117,-500.0,0.00021917,2]
[328450969,1717404647126,-643.73,0.00021917,2]
[328450970,1717404647137,-535.66,0.00021917,2]
[328450971,1717404647149,-500.0,0.00021917,2]
[328450972,1717404647158,-500.0,0.00021917,2]
[328450973,1717404647167,-500.60506637,0.00021917,2]
[328450974,1717404647176,-572.46,0.00021917,2]
[328450975,1717404647185,-151.0,0.00021917,2]
[328450976,1717404647194,-500.0,0.00021917,2]
[328450977,1717404647203,-281.368209,0.00021917,2]
[328450978,1717404647211,-500.0,0.00021917,2]
[328450979,1717404647220,-500.0,0.00021917,2]
[328450980,1717404647229,-500.0,0.00021917,2]
[328450981,1717404647238,-500.0,0.00021917,2]
[328450982,1717404647247,-577.0,0.00021917,2]
[328450983,1717404647255,-502.4014614,0.00021917,2]
[328450984,1717404647264,-1773.75,0.00021917,2]
[328450985,1717404647273,-220.55739796,0.00021917,2]
[328450986,1717404647282,-502.39300777,0.00021917,2]
[328450987,1717404647290,-500.0,0.00021917,2]
[328450988,1717404647299,-506.0100259,0.00021917,2]
[328450989,1717404647307,-500.0,0.00021917,2]
[328450990,1717404647316,-500.0,0.00021917,2]
[328450991,1717404647326,-500.0,0.00021917,2]
[328450992,1717404647335,-151.0,0.00021917,2]
[328450993,1717404647343,-151.0,0.00021917,2]
[328450994,1717404647352,-151.0,0.00021917,2]
[328450995,1717404647362,-701.19,0.00021917,2]
[328450996,1717404647371,-4488.14,0.00021917,2]
[328450997,1717404647380,-502.71720836,0.00021917,2]
[328450998,1717404647389,-151.4287651,0.00021917,2]
[328450999,1717404647399,-500.0,0.00021917,2]
[328451000,1717404647408,-501.51765416,0.00021917,2]
[328451001,1717404647416,-500.0,0.00021917,2]
[328451002,1717404647425,-500.63027407,0.00021917,2]
[328451003,1717404647434,-500.0,0.00021917,2]
[328451004,1717404647443,-500.50736143,0.00021917,2]
[328451005,1717404647452,-508.49533427,0.00021917,2]
[328451006,1717404647461,-517.3191135,0.00021917,2]
[328451007,1717404647470,-671.95,0.00021917,2]
[328451008,1717404647480,-641.42385137,0.00021917,2]
[328451009,1717404647490,-500.0,0.00021917,2]
[328451010,1717404647499,-500.0,0.00021917,2]
[328451011,1717404647508,-504.14269326,0.00021917,2]
[328451012,1717404647517,-501.68842861,0.00021917,2]
[328451013,1717404647526,-500.0,0.00021917,2]
[328451014,1717404647535,-500.0,0.00021917,2]
[328451015,1717404647544,-500.0,0.00021917,2]
[328451016,1717404647553,-500.0,0.00021917,2]
[328451017,1717404647562,-500.0,0.00021917,2]
[328451018,1717404647572,-500.0,0.00021917,2]
[328451019,1717404647581,-1695.07,0.00021917,2]
[328451020,1717404647590,-3036.8,0.00021917,2]
[328451021,1717404647599,-224.222039,0.00021917,2]
[328451022,1717404647608,-500.0,0.00021917,2]
[328451023,1717404647617,-500.97041675,0.00021917,2]
[328451024,1717404647626,-501.03166144,0.00021917,2]
[328451025,1717404647635,-614.75,0.00021917,2]
[328451026,1717404647645,-500.82139951,0.00021917,2]
[328451027,1717404647654,-509.63546664,0.00021917,2]
[328451028,1717404647663,-1032.66,0.00021917,2]
[328451029,1717404647672,-500.0,0.00021917,2]
[328451030,1717404647681,-500.0,0.00021917,2]
[328451031,1717404647690,-500.76389585,0.00021917,2]
[328451032,1717404647699,-523.34239279,0.00021917,2]
[328451033,1717404647708,-500.0,0.00021917,2]
[328451034,1717404647718,-500.0,0.00021917,2]
[328451035,1717404647727,-500.0,0.00021917,2]
[328451036,1717404647736,-500.0,0.00021917,2]
[328451037,1717404647746,-501.76913593,0.00021917,2]
[328451038,1717404647755,-500.0,0.00021917,2]
[328451039,1717404647763,-500.0,0.00021917,2]
[328451040,1717404647773,-501.26597614,0.00021917,2]
[328451041,1717404647782,-500.0,0.00021917,2]
[328451042,1717404647791,-502.18627272,0.00021917,2]
[328451043,1717404647800,-500.0,0.00021917,2]
[328451044,1717404647810,-500.0,0.00021917,2]
[328451045,1717404647822,-1663.503798,0.00021917,2]
[328451046,1717404647830,-500.0,0.00021917,2]
[328451047,1717404647839,-1663.503798,0.00021917,2]
[328451048,1717404647848,-500.73,0.00021917,2]
[328451049,1717404647858,-151.0,0.00021917,2]
[328451050,1717404647867,-283.352428,0.00021917,2]
[328451051,1717404647876,-501.711312,0.00021917,2]
[328451052,1717404647885,-1099.03,0.00021917,2]
[328451053,1717404647894,-500.0,0.00021917,2]
[328451054,1717404647905,-500.0,0.00021917,2]
[328451055,1717404647914,-500.0,0.00021917,2]
[328451056,1717404647923,-1663.503798,0.00021917,2]
[328451057,1717404647932,-501.99719908,0.00021917,2]
[328451058,1717404647941,-1663.503798,0.00021917,2]
[328451059,1717404647950,-500.0,0.00021917,2]
[328451060,1717404647959,-502.53586952,0.00021917,2]
[328451061,1717404647967,-1044.11,0.00021917,2]
[328451062,1717404647977,-1264.73,0.00021917,2]
[328451063,1717404647986,-502.2032357,0.00021917,2]
[328451064,1717404647995,-500.0,0.00021917,2]
[328451065,1717404648004,-501.44245996,0.00021917,2]
[328451066,1717404648013,-151.0,0.00021917,2]
[328451067,1717404648022,-151.0,0.00021917,2]
[328451068,1717404648030,-500.81518899,0.00021917,2]
[328451069,1717404648039,-500.0,0.00021917,2]
[328451070,1717404648048,-3068.01,0.00021917,2]
[328451071,1717404648057,-500.0,0.00021917,2]
[328451072,1717404648066,-500.0,0.00021917,2]
[328451073,1717404648075,-205.56952149,0.00021917,2]
[328451074,1717404648083,-602.63,0.00021917,2]
[328451075,1717404648092,-500.0,0.00021917,2]
[328451076,1717404648102,-500.0,0.00021917,2]
[328451077,1717404648110,-500.0,0.00021917,2]
[328451078,1717404648119,-500.0,0.00021917,2]
[328451079,1717404648129,-500.0,0.00021917,2]
[328451080,1717404648138,-500.0,0.00021917,2]
[328451081,1717404648148,-501.96205101,0.00021917,2]
[328451082,1717404648157,-501.76338535,0.00021917,2]
[328451083,1717404648166,-500.0,0.00021917,2]
[328451084,1717404648175,-502.0437129,0.00021917,2]
[328451085,1717404648184,-912.78,0.00021917,2]
[328451086,1717404648193,-503.35988999,0.00021917,2]
[328451087,1717404648203,-501.31750753,0.00021917,2]
[328451088,1717404648213,-500.0,0.00021917,2]
[328451089,1717404648222,-501.20579658,0.00021917,2]
[328451090,1717404648233,-597.96646449,0.00021917,2]
[328451091,1717404648242,-500.0,0.00021917,2]
[328451092,1717404648251,-151.0,0.00021917,2]
[328451093,1717404648261,-151.0,0.00021917,2]
[328451094,1717404648271,-151.0,0.00021917,2]
[328451095,1717404648280,-500.0,0.00021917,2]
[328451096,1717404648290,-1779.92,0.00021917,2]
[328451097,1717404648300,-536.1,0.00021917,2]
[328451098,1717404648310,-500.0,0.00021917,2]
[328451099,1717404648318,-500.0,0.00021917,2]
[328451100,1717404648328,-500.0,0.00021917,2]
[328451101,1717404648338,-500.0,0.00021917,2]
[328451102,1717404648348,-502.85882962,0.00021917,2]
[328451103,1717404648358,-500.0,0.00021917,2]
[328451104,1717404648368,-500.0,0.00021917,2]
[328451105,1717404648376,-796.41,0.00021917,2]
[328451106,1717404648385,-500.0,0.00021917,2]
[328451107,1717404648395,-547.55,0.00021917,2]
[328451108,1717404648403,-500.0,0.00021917,2]
[328451109,1717404648412,-500.0,0.00021917,2]
[328451110,1717404648422,-501.41230999,0.00021917,2]
[328451111,1717404648431,-500.0,0.00021917,2]
[328451112,1717404648440,-500.21011973,0.00021917,2]
[328451113,1717404648450,-500.0,0.00021917,2]
[328451114,1717404648459,-502.08609836,0.00021917,2]
[328451115,1717404648468,-565.5043112,0.00021918,2]
[328451116,1717404648477,-216.294838,0.00021918,2]
[328451117,1717404648485,-151.0,0.00022,2]
[328451118,1717404648495,-151.0,0.00022,2]
[328451119,1717404648505,-7897.3741898,0.00022188,2]
[328451120,1717404648515,-3000.0,0.0002219,2]
[328451121,1717404648525,-2349.31088228,0.0002219,2]
[328451122,1717404648534,-500.0,0.00022191,2]
[328451123,1717404648543,-500.0,0.00022191,2]